[Event "Early-Titled-Tuesday-Blitz-May-14-2024"]
[Site "Chess.com"]
[Date "2024.05.14"]
[Round "8"]
[White "AccioChess"]
[Black "Eliwood44"]
[Result "1-0"]
[WhiteElo "2440"]
[BlackElo "2447"]
[TimeControl "180+1"]
[EndTime "9:26:44 PDT"]
[Termination "AccioChess won by resignation"]

1. c4 {[%clk 0:03:00.9]} 1... e6 {[%clk 0:02:59.4]} 2. Nf3 {[%clk 0:03:01.8]}
2... Nf6 {[%clk 0:02:58.8]} 3. g3 {[%clk 0:03:02.7]} 3... d5 {[%clk 0:02:58.9]}
4. Bg2 {[%clk 0:03:03.6]} 4... Be7 {[%clk 0:02:59.3]} 5. O-O {[%clk 0:03:03.9]}
5... O-O {[%clk 0:03:00]} 6. cxd5 {[%clk 0:03:04.1]} 6... exd5 {[%clk
0:03:00.2]} 7. d4 {[%clk 0:03:05]} 7... c6 {[%clk 0:03:00.4]} 8. Nc3 {[%clk
0:03:05.4]} 8... Bf5 {[%clk 0:03:00.3]} 9. Bg5 {[%clk 0:03:05.5]} 9... Nbd7
{[%clk 0:03:00.2]} 10. Ne5 {[%clk 0:03:01.3]} 10... h6 {[%clk 0:02:57.7]} 11.
Nxd7 {[%clk 0:02:59]} 11... Qxd7 {[%clk 0:02:55.6]} 12. Bxf6 {[%clk 0:02:58.9]}
12... Bxf6 {[%clk 0:02:56.2]} 13. e3 {[%clk 0:02:59.4]} 13... g6 {[%clk
0:02:51.8]} 14. b4 {[%clk 0:02:58.4]} 14... a6 {[%clk 0:02:51.2]} 15. a4 {[%clk
0:02:58.4]} 15... h5 {[%clk 0:02:50.9]} 16. b5 {[%clk 0:02:55.1]} 16... cxb5
{[%clk 0:02:51.3]} 17. axb5 {[%clk 0:02:56]} 17... a5 {[%clk 0:02:51.9]} 18.
Nxd5 {[%clk 0:02:55.2]} 18... Bd8 {[%clk 0:02:48.9]} 19. b6 {[%clk 0:02:31.9]}
19... h4 {[%clk 0:02:46.3]} 20. Qa4 {[%clk 0:02:25]} 20... Qd6 {[%clk
0:02:41.9]} 21. Rfc1 {[%clk 0:02:17.6]} 21... hxg3 {[%clk 0:02:40.3]} 22. hxg3
{[%clk 0:02:17.3]} 22... Kg7 {[%clk 0:02:40.8]} 23. Nc7 {[%clk 0:02:13.5]} 23...
Rb8 {[%clk 0:02:31.1]} 24. Ne8+ {[%clk 0:02:10.3]} 24... Rxe8 {[%clk 0:02:30.2]}
25. Qxe8 {[%clk 0:02:11.2]} 25... Bxb6 {[%clk 0:02:26.5]} 26. Qb5 {[%clk
0:02:11.3]} 26... Rh8 {[%clk 0:02:22.8]} 27. Bxb7 {[%clk 0:02:06.9]} 27... Rh5
{[%clk 0:02:17.6]} 28. Rc6 {[%clk 0:01:57]} 28... Qd7 {[%clk 0:02:09]} 29. Rxb6
{[%clk 0:01:55.1]} 29... Be4 {[%clk 0:02:05.6]} 30. Qxh5 {[%clk 0:01:54.7]}
30... gxh5 {[%clk 0:02:02.1]} 31. Bxe4 {[%clk 0:01:54.8]} 31... h4 {[%clk
0:02:00.2]} 32. gxh4 {[%clk 0:01:50.7]} 1-0

[Event "Early-Titled-Tuesday-Blitz-May-14-2024"]
[Site "Chess.com"]
[Date "2024.05.14"]
[Round "8"]
[White "Anu-triz"]
[Black "TheAlienParty"]
[Result "0-1"]
[WhiteElo "2294"]
[BlackElo "2427"]
[TimeControl "180+1"]
[EndTime "9:26:44 PDT"]
[Termination "TheAlienParty won by resignation"]

1. e4 {[%clk 0:02:59.6]} 1... e5 {[%clk 0:02:57.3]} 2. Nf3 {[%clk 0:02:59.1]}
2... Nc6 {[%clk 0:02:57]} 3. Nc3 {[%clk 0:03:00]} 3... Bc5 {[%clk 0:02:53.5]} 4.
Nxe5 {[%clk 0:02:53.3]} 4... Nxe5 {[%clk 0:02:50.6]} 5. d4 {[%clk 0:02:52.5]}
5... Bd6 {[%clk 0:02:45.7]} 6. dxe5 {[%clk 0:02:51.8]} 6... Bxe5 {[%clk
0:02:45.6]} 7. Bd3 {[%clk 0:02:52.3]} 7... d6 {[%clk 0:02:40.3]} 8. O-O {[%clk
0:02:51.4]} 8... Qh4 {[%clk 0:02:37.2]} 9. g3 {[%clk 0:02:45.1]} 9... Qh3 {[%clk
0:02:36.9]} 10. Ne2 {[%clk 0:02:45.2]} 10... Nf6 {[%clk 0:02:33.9]} 11. f4
{[%clk 0:02:45.1]} 11... Ng4 {[%clk 0:02:31.6]} 12. Rf2 {[%clk 0:02:34.2]} 12...
Nxf2 {[%clk 0:02:28.3]} 13. Kxf2 {[%clk 0:02:35.1]} 13... Qxh2+ {[%clk
0:02:27.9]} 14. Kf3 {[%clk 0:02:16.5]} 14... Bf6 {[%clk 0:02:26.7]} 15. e5
{[%clk 0:02:08]} 15... dxe5 {[%clk 0:02:23.7]} 16. fxe5 {[%clk 0:02:06.1]} 16...
Bxe5 {[%clk 0:02:23]} 17. Bf4 {[%clk 0:02:06.1]} 17... Bxf4 {[%clk 0:02:14]} 18.
Nxf4 {[%clk 0:02:07]} 18... O-O {[%clk 0:02:13.5]} 19. Qe1 {[%clk 0:01:40.8]}
19... Bd7 {[%clk 0:02:08.9]} 20. Qe4 {[%clk 0:01:39.7]} 20... Bc6 {[%clk
0:02:06.1]} 21. Nd5 {[%clk 0:01:39.3]} 21... Qh5+ {[%clk 0:01:59.1]} 22. Kf2
{[%clk 0:01:37.6]} 22... Bxd5 {[%clk 0:01:57.8]} 0-1

[Event "Early-Titled-Tuesday-Blitz-May-14-2024"]
[Site "Chess.com"]
[Date "2024.05.14"]
[Round "8"]
[White "TERMINATOR_PC"]
[Black "super_emi_26"]
[Result "0-1"]
[WhiteElo "2604"]
[BlackElo "2874"]
[TimeControl "180+1"]
[EndTime "9:27:13 PDT"]
[Termination "super_emi_26 won by resignation"]

1. e4 {[%clk 0:02:21.7]} 1... g6 {[%clk 0:02:54.1]} 2. d4 {[%clk 0:02:10.6]}
2... Bg7 {[%clk 0:02:53.3]} 3. Nc3 {[%clk 0:02:10.2]} 3... c6 {[%clk 0:02:46.3]}
4. Bc4 {[%clk 0:02:08.7]} 4... d5 {[%clk 0:02:44.1]} 5. exd5 {[%clk 0:02:07.9]}
5... b5 {[%clk 0:02:44.7]} 6. Bb3 {[%clk 0:02:08.2]} 6... b4 {[%clk 0:02:45]} 7.
Na4 {[%clk 0:02:08.6]} 7... cxd5 {[%clk 0:02:44.9]} 8. Nf3 {[%clk 0:02:05.8]}
8... Nf6 {[%clk 0:02:44.1]} 9. O-O {[%clk 0:02:04.8]} 9... O-O {[%clk
0:02:41.9]} 10. a3 {[%clk 0:02:05]} 10... bxa3 {[%clk 0:02:41.9]} 11. Rxa3
{[%clk 0:02:04.9]} 11... Nc6 {[%clk 0:02:41.6]} 12. c3 {[%clk 0:02:04.3]} 12...
Bg4 {[%clk 0:02:34.6]} 13. h3 {[%clk 0:02:03.2]} 13... Bxf3 {[%clk 0:02:34.4]}
14. Qxf3 {[%clk 0:02:04.1]} 14... e6 {[%clk 0:02:34.7]} 15. Bg5 {[%clk 0:02:02]}
15... h6 {[%clk 0:02:34.8]} 16. Bf4 {[%clk 0:01:54.8]} 16... Ne4 {[%clk
0:02:31.7]} 17. Bc2 {[%clk 0:01:52.7]} 17... f5 {[%clk 0:02:29.3]} 18. Qe2
{[%clk 0:01:47.9]} 18... g5 {[%clk 0:02:23]} 19. Bh2 {[%clk 0:01:47.2]} 19...
Re8 {[%clk 0:02:20]} 20. f3 {[%clk 0:01:41.9]} 20... Nd6 {[%clk 0:02:17.9]} 21.
Nc5 {[%clk 0:01:38.5]} 21... Nxd4 {[%clk 0:02:15.1]} 22. Qa6 {[%clk 0:01:30]}
22... Nc4 {[%clk 0:02:11.9]} 23. Ra4 {[%clk 0:01:15.3]} 23... Nxc2 {[%clk
0:01:58.1]} 24. Nxe6 {[%clk 0:01:11.7]} 24... Qb6+ {[%clk 0:01:55.2]} 0-1

[Event "Early-Titled-Tuesday-Blitz-May-14-2024"]
[Site "Chess.com"]
[Date "2024.05.14"]
[Round "8"]
[White "SirGerhard"]
[Black "Antosha_Chekhonte"]
[Result "0-1"]
[WhiteElo "2714"]
[BlackElo "2595"]
[TimeControl "180+1"]
[EndTime "9:27:37 PDT"]
[Termination "Antosha_Chekhonte won by resignation"]

1. d4 {[%clk 0:02:59.7]} 1... Nf6 {[%clk 0:02:59.1]} 2. Nf3 {[%clk 0:02:58.7]}
2... e6 {[%clk 0:02:59.7]} 3. c4 {[%clk 0:02:58]} 3... d5 {[%clk 0:02:59.6]} 4.
Nc3 {[%clk 0:02:58.1]} 4... Be7 {[%clk 0:02:59.7]} 5. Bf4 {[%clk 0:02:57.7]}
5... O-O {[%clk 0:02:59.3]} 6. e3 {[%clk 0:02:57.8]} 6... b6 {[%clk 0:02:59.9]}
7. cxd5 {[%clk 0:02:56.7]} 7... Nxd5 {[%clk 0:02:59.6]} 8. Nxd5 {[%clk
0:02:56.6]} 8... Qxd5 {[%clk 0:03:00.5]} 9. a3 {[%clk 0:02:55.5]} 9... Bd6
{[%clk 0:02:55.4]} 10. Bg3 {[%clk 0:02:51.9]} 10... Bxg3 {[%clk 0:02:41.7]} 11.
hxg3 {[%clk 0:02:51.6]} 11... c5 {[%clk 0:02:42.4]} 12. Bd3 {[%clk 0:02:45.8]}
12... h6 {[%clk 0:02:37.4]} 13. e4 {[%clk 0:02:37.3]} 13... Qd7 {[%clk
0:02:28.9]} 14. Qd2 {[%clk 0:02:30.8]} 14... Ba6 {[%clk 0:02:13.4]} 15. Bc2
{[%clk 0:02:20.3]} 15... cxd4 {[%clk 0:02:07.6]} 16. Qxd4 {[%clk 0:01:46.8]}
16... Rc8 {[%clk 0:02:04.7]} 17. O-O-O {[%clk 0:01:35.8]} 17... Qc7 {[%clk
0:01:45.6]} 18. Rd2 {[%clk 0:01:28.7]} 18... Nc6 {[%clk 0:01:45.6]} 19. Qe3
{[%clk 0:01:21.7]} 19... Na5 {[%clk 0:01:44.6]} 20. Qf4 {[%clk 0:01:13.1]} 20...
Nb3+ {[%clk 0:01:33.6]} 21. Kd1 {[%clk 0:01:10.1]} 21... Nxd2 {[%clk 0:01:28.8]}
22. Qxc7 {[%clk 0:01:10.1]} 22... Rxc7 {[%clk 0:01:24.3]} 0-1

[Event "Early-Titled-Tuesday-Blitz-May-14-2024"]
[Site "Chess.com"]
[Date "2024.05.14"]
[Round "8"]
[White "Raud100"]
[Black "Felix-Rose"]
[Result "0-1"]
[WhiteElo "2345"]
[BlackElo "2258"]
[TimeControl "180+1"]
[EndTime "9:27:37 PDT"]
[Termination "Felix-Rose won by resignation"]

1. d4 {[%clk 0:03:00.9]} 1... d5 {[%clk 0:02:59.8]} 2. c4 {[%clk 0:03:00.8]}
2... e6 {[%clk 0:02:54.7]} 3. Nc3 {[%clk 0:03:00.5]} 3... Nf6 {[%clk 0:02:54.8]}
4. Bg5 {[%clk 0:03:01.1]} 4... Be7 {[%clk 0:02:54.8]} 5. e3 {[%clk 0:03:01.7]}
5... Nbd7 {[%clk 0:02:54.8]} 6. Nf3 {[%clk 0:03:01.8]} 6... h6 {[%clk
0:02:55.2]} 7. Bh4 {[%clk 0:03:01.5]} 7... O-O {[%clk 0:02:55.7]} 8. Bd3 {[%clk
0:03:01.7]} 8... c5 {[%clk 0:02:52.4]} 9. O-O {[%clk 0:03:00.5]} 9... b6 {[%clk
0:02:52]} 10. Qe2 {[%clk 0:03:00.2]} 10... Bb7 {[%clk 0:02:51.3]} 11. Rac1
{[%clk 0:02:59]} 11... Ne4 {[%clk 0:02:50.5]} 12. Bg3 {[%clk 0:02:57.9]} 12...
cxd4 {[%clk 0:02:42.9]} 13. exd4 {[%clk 0:02:55.7]} 13... Nxg3 {[%clk
0:02:42.5]} 14. hxg3 {[%clk 0:02:55.7]} 14... dxc4 {[%clk 0:02:42.7]} 15. Bxc4
{[%clk 0:02:56.4]} 15... Nf6 {[%clk 0:02:37.7]} 16. Ne5 {[%clk 0:02:53.7]} 16...
Qxd4 {[%clk 0:02:32.6]} 17. Rfd1 {[%clk 0:02:52]} 17... Qc5 {[%clk 0:02:11.9]}
18. Nf3 {[%clk 0:02:42.4]} 18... Qh5 {[%clk 0:02:06.5]} 19. Nh2 {[%clk
0:02:33.2]} 19... Qxe2 {[%clk 0:02:03.3]} 20. Bxe2 {[%clk 0:02:34.1]} 20... Rfd8
{[%clk 0:02:03.1]} 21. Bf3 {[%clk 0:02:33.7]} 21... Bxf3 {[%clk 0:02:02.2]} 22.
Nxf3 {[%clk 0:02:34.6]} 22... Rxd1+ {[%clk 0:01:58.6]} 23. Rxd1 {[%clk
0:02:34.3]} 23... Rd8 {[%clk 0:01:56.6]} 24. Rc1 {[%clk 0:02:34.2]} 24... Rc8
{[%clk 0:01:50.4]} 25. Rd1 {[%clk 0:02:30]} 25... a6 {[%clk 0:01:48.3]} 26. Kf1
{[%clk 0:02:28.8]} 26... b5 {[%clk 0:01:48.6]} 27. a3 {[%clk 0:02:26.4]} 27...
Bxa3 {[%clk 0:01:47.5]} 28. Nxb5 {[%clk 0:02:23.1]} 28... Bxb2 {[%clk
0:01:44.2]} 29. Nd6 {[%clk 0:02:22.8]} 29... Rc1 {[%clk 0:01:43.8]} 30. Rxc1
{[%clk 0:02:21.1]} 30... Bxc1 {[%clk 0:01:44.7]} 31. Ne5 {[%clk 0:02:21]} 31...
a5 {[%clk 0:01:36.1]} 32. Ke2 {[%clk 0:02:20.9]} 32... Nd5 {[%clk 0:01:32.7]}
33. Kd1 {[%clk 0:02:17.5]} 33... Bb2 {[%clk 0:01:28.9]} 34. Nexf7 {[%clk
0:02:17]} 34... a4 {[%clk 0:01:29.2]} 35. Kc2 {[%clk 0:02:16.6]} 35... a3 {[%clk
0:01:29.4]} 36. Nd8 {[%clk 0:02:12.1]} 36... Nb4+ {[%clk 0:01:22.3]} 37. Kb3
{[%clk 0:02:09.6]} 37... Be5 {[%clk 0:01:17.8]} 38. Nc4 {[%clk 0:02:06.6]} 38...
a2 {[%clk 0:01:16.7]} 39. Nxe5 {[%clk 0:01:59.2]} 39... a1=Q {[%clk 0:01:15.8]}
0-1

[Event "Early-Titled-Tuesday-Blitz-May-14-2024"]
[Site "Chess.com"]
[Date "2024.05.14"]
[Round "8"]
[White "Carolinamazariegos88"]
[Black "NCchamp"]
[Result "0-1"]
[WhiteElo "1697"]
[BlackElo "2308"]
[TimeControl "180+1"]
[EndTime "9:27:40 PDT"]
[Termination "NCchamp won by resignation"]

1. c4 {[%clk 0:03:00]} 1... c6 {[%clk 0:02:21.6]} 2. Nc3 {[%clk 0:02:59.3]} 2...
d5 {[%clk 0:02:22.5]} 3. cxd5 {[%clk 0:02:59.1]} 3... cxd5 {[%clk 0:02:21.9]} 4.
d4 {[%clk 0:02:59.4]} 4... Nf6 {[%clk 0:02:19]} 5. g3 {[%clk 0:02:59.7]} 5...
Nc6 {[%clk 0:02:18.6]} 6. Bg2 {[%clk 0:03:00.3]} 6... Bf5 {[%clk 0:02:18.1]} 7.
Nf3 {[%clk 0:03:00.7]} 7... e6 {[%clk 0:02:17.7]} 8. a3 {[%clk 0:02:59.7]} 8...
a6 {[%clk 0:02:17.1]} 9. O-O {[%clk 0:02:59.5]} 9... Bd6 {[%clk 0:02:16.7]} 10.
h3 {[%clk 0:02:59.3]} 10... h6 {[%clk 0:02:15.7]} 11. Nh4 {[%clk 0:02:49.1]}
11... Bh7 {[%clk 0:02:15.2]} 12. f4 {[%clk 0:02:49.2]} 12... O-O {[%clk
0:02:11.7]} 13. Nf3 {[%clk 0:02:46.4]} 13... Ne4 {[%clk 0:02:10.5]} 14. e3
{[%clk 0:02:30.4]} 14... Nxg3 {[%clk 0:02:08.4]} 15. Re1 {[%clk 0:02:24.5]}
15... b5 {[%clk 0:02:03.5]} 16. Ne5 {[%clk 0:02:19.9]} 16... Rc8 {[%clk
0:01:53.8]} 17. Qg4 {[%clk 0:02:15.4]} 17... Ne4 {[%clk 0:01:50.3]} 18. Nxe4
{[%clk 0:02:14.9]} 18... dxe4 {[%clk 0:01:51.2]} 19. Bd2 {[%clk 0:02:08.4]}
19... Bf5 {[%clk 0:01:49.7]} 20. Qg3 {[%clk 0:02:07]} 20... Nxe5 {[%clk
0:01:40.5]} 21. fxe5 {[%clk 0:02:03.3]} 21... Be7 {[%clk 0:01:40.9]} 22. h4
{[%clk 0:01:56.7]} 22... Bxh4 {[%clk 0:01:39.7]} 23. Qf4 {[%clk 0:01:53.3]}
23... Bxe1 {[%clk 0:01:36.5]} 24. Rxe1 {[%clk 0:01:50.7]} 24... Rc2 {[%clk
0:01:36.5]} 25. Bc1 {[%clk 0:01:48.7]} 25... Qc8 {[%clk 0:01:27.7]} 26. Qf1
{[%clk 0:01:33]} 26... Qc7 {[%clk 0:01:27.2]} 27. a4 {[%clk 0:01:25]} 27... Rc8
{[%clk 0:01:25.6]} 0-1

[Event "Early-Titled-Tuesday-Blitz-May-14-2024"]
[Site "Chess.com"]
[Date "2024.05.14"]
[Round "8"]
[White "Herzog2012"]
[Black "penguingm1"]
[Result "1-0"]
[WhiteElo "2582"]
[BlackElo "2797"]
[TimeControl "180+1"]
[EndTime "9:27:41 PDT"]
[Termination "Herzog2012 won by resignation"]

1. e4 {[%clk 0:03:00.9]} 1... b5 {[%clk 0:02:58.7]} 2. Bxb5 {[%clk 0:02:57.7]}
2... f5 {[%clk 0:02:58.4]} 3. exf5 {[%clk 0:02:48.7]} 3... c6 {[%clk 0:02:58.9]}
4. Qh5+ {[%clk 0:02:38.6]} 4... g6 {[%clk 0:02:59.2]} 5. fxg6 {[%clk 0:02:38.6]}
5... Bg7 {[%clk 0:02:59.9]} 6. gxh7+ {[%clk 0:02:30.4]} 6... Kf8 {[%clk
0:02:59.8]} 7. Bd3 {[%clk 0:02:22.8]} 7... Nf6 {[%clk 0:02:56.9]} 8. Qe2 {[%clk
0:02:21.6]} 8... d6 {[%clk 0:02:47.5]} 9. Nf3 {[%clk 0:02:18.9]} 9... e5 {[%clk
0:02:48]} 10. Nc3 {[%clk 0:02:13.9]} 10... Nbd7 {[%clk 0:02:47.9]} 11. Nh4
{[%clk 0:02:07.2]} 11... d5 {[%clk 0:02:32.6]} 12. Ng6+ {[%clk 0:02:05.2]} 12...
Kf7 {[%clk 0:02:33]} 13. Nxh8+ {[%clk 0:02:04.4]} 13... Bxh8 {[%clk 0:02:33.9]}
14. Bf5 {[%clk 0:02:01.2]} 14... Qe7 {[%clk 0:02:32.3]} 15. d3 {[%clk
0:01:59.2]} 15... Nc5 {[%clk 0:02:24.5]} 16. Bxc8 {[%clk 0:01:58.2]} 16... Rxc8
{[%clk 0:02:25.4]} 17. Bg5 {[%clk 0:01:56.8]} 17... Rb8 {[%clk 0:02:24.2]} 18.
O-O {[%clk 0:01:50.8]} 18... Ne6 {[%clk 0:02:23.9]} 19. f4 {[%clk 0:01:34.4]}
19... Qc5+ {[%clk 0:02:13.2]} 20. Kh1 {[%clk 0:01:31.9]} 20... e4 {[%clk
0:02:02.2]} 21. dxe4 {[%clk 0:01:21.6]} 21... d4 {[%clk 0:01:57.9]} 22. e5
{[%clk 0:01:15.2]} 22... Nxh7 {[%clk 0:01:56.5]} 23. Qh5+ {[%clk 0:01:12.9]}
23... Kg8 {[%clk 0:01:56.4]} 24. Qg6+ {[%clk 0:01:07.9]} 24... Ng7 {[%clk
0:01:55.1]} 25. Ne4 {[%clk 0:01:08.4]} 25... Qxc2 {[%clk 0:01:37]} 26. Nf6+
{[%clk 0:01:03.4]} 26... Nxf6 {[%clk 0:01:37.6]} 27. Qxc2 {[%clk 0:01:03.9]} 1-0

[Event "Early-Titled-Tuesday-Blitz-May-14-2024"]
[Site "Chess.com"]
[Date "2024.05.14"]
[Round "8"]
[White "GMG"]
[Black "Jospem"]
[Result "0-1"]
[WhiteElo "2799"]
[BlackElo "3000"]
[TimeControl "180+1"]
[EndTime "9:27:51 PDT"]
[Termination "Jospem won by resignation"]

1. e4 {[%clk 0:03:00.9]} 1... c5 {[%clk 0:02:58.7]} 2. Nf3 {[%clk 0:03:01]} 2...
d6 {[%clk 0:02:59.5]} 3. Bb5+ {[%clk 0:02:59.4]} 3... Nd7 {[%clk 0:02:59.5]} 4.
c3 {[%clk 0:02:56]} 4... a6 {[%clk 0:02:59]} 5. Bd3 {[%clk 0:02:51.1]} 5... Ngf6
{[%clk 0:02:56.6]} 6. Bc2 {[%clk 0:02:47.1]} 6... e5 {[%clk 0:02:49]} 7. d4
{[%clk 0:02:46.3]} 7... Be7 {[%clk 0:02:49.9]} 8. O-O {[%clk 0:02:43.7]} 8...
O-O {[%clk 0:02:49.7]} 9. a4 {[%clk 0:02:43.2]} 9... b6 {[%clk 0:02:44.9]} 10.
Re1 {[%clk 0:02:41.1]} 10... Bb7 {[%clk 0:02:42.6]} 11. d5 {[%clk 0:02:41.1]}
11... Ne8 {[%clk 0:02:41.7]} 12. Nbd2 {[%clk 0:02:36.9]} 12... g6 {[%clk
0:02:42.1]} 13. b4 {[%clk 0:02:35.1]} 13... Rc8 {[%clk 0:02:41.5]} 14. Bd3
{[%clk 0:02:24.7]} 14... Ng7 {[%clk 0:02:36.1]} 15. Qe2 {[%clk 0:02:23.9]} 15...
Ra8 {[%clk 0:02:31.8]} 16. Ba3 {[%clk 0:02:18.2]} 16... Qc7 {[%clk 0:02:31.9]}
17. Rab1 {[%clk 0:02:14.8]} 17... Rfb8 {[%clk 0:02:31.9]} 18. g3 {[%clk
0:02:11.8]} 18... Bc8 {[%clk 0:02:26.1]} 19. Kg2 {[%clk 0:02:11.3]} 19... f5
{[%clk 0:02:20.3]} 20. h4 {[%clk 0:02:05.5]} 20... Nf6 {[%clk 0:02:16.5]} 21.
Ng5 {[%clk 0:02:00.2]} 21... f4 {[%clk 0:02:10.3]} 22. bxc5 {[%clk 0:01:57.4]}
22... bxc5 {[%clk 0:02:07.8]} 23. Bc4 {[%clk 0:01:52.6]} 23... Qa5 {[%clk
0:02:04]} 24. Ra1 {[%clk 0:01:48.8]} 24... fxg3 {[%clk 0:01:46.2]} 25. fxg3
{[%clk 0:01:47.6]} 25... Nfh5 {[%clk 0:01:46.6]} 26. Qe3 {[%clk 0:01:40.6]}
26... Nf6 {[%clk 0:01:34.1]} 27. Bxc5 {[%clk 0:01:36.7]} 27... Ng4 {[%clk
0:01:32.3]} 28. Qg1 {[%clk 0:01:31]} 28... Bxg5 {[%clk 0:01:30.7]} 29. hxg5
{[%clk 0:01:29]} 29... dxc5 {[%clk 0:01:20.3]} 30. Rec1 {[%clk 0:01:21.4]} 30...
Rb2 {[%clk 0:01:19.7]} 0-1

[Event "Early-Titled-Tuesday-Blitz-May-14-2024"]
[Site "Chess.com"]
[Date "2024.05.14"]
[Round "8"]
[White "karinachess1"]
[Black "ilqar_74"]
[Result "1-0"]
[WhiteElo "2631"]
[BlackElo "2817"]
[TimeControl "180+1"]
[EndTime "9:28:02 PDT"]
[Termination "karinachess1 won by resignation"]

1. d4 {[%clk 0:03:00.9]} 1... Nf6 {[%clk 0:02:58.7]} 2. c4 {[%clk 0:03:00.2]}
2... e6 {[%clk 0:02:58.3]} 3. Nc3 {[%clk 0:02:59.4]} 3... d5 {[%clk 0:02:57.8]}
4. cxd5 {[%clk 0:02:59.3]} 4... exd5 {[%clk 0:02:58.7]} 5. Bg5 {[%clk
0:02:59.2]} 5... Bb4 {[%clk 0:02:57.4]} 6. a3 {[%clk 0:02:52.6]} 6... Ba5 {[%clk
0:02:55.2]} 7. Qa4+ {[%clk 0:02:37.8]} 7... Nc6 {[%clk 0:02:52.6]} 8. e3 {[%clk
0:02:36.5]} 8... h6 {[%clk 0:02:41.3]} 9. Bxf6 {[%clk 0:02:26.3]} 9... Bxc3+
{[%clk 0:02:37.1]} 10. bxc3 {[%clk 0:02:26]} 10... Qxf6 {[%clk 0:02:37.8]} 11.
Nf3 {[%clk 0:02:20.9]} 11... O-O {[%clk 0:02:37.7]} 12. Be2 {[%clk 0:02:09.9]}
12... a6 {[%clk 0:02:36.1]} 13. c4 {[%clk 0:02:06.3]} 13... dxc4 {[%clk
0:02:31.8]} 14. Qxc4 {[%clk 0:02:05.9]} 14... Be6 {[%clk 0:02:29.5]} 15. Qc2
{[%clk 0:02:03.5]} 15... Bd5 {[%clk 0:02:28.6]} 16. O-O {[%clk 0:02:02.2]} 16...
Qd6 {[%clk 0:02:22.9]} 17. e4 {[%clk 0:01:52]} 17... Be6 {[%clk 0:02:01.5]} 18.
d5 {[%clk 0:01:52.1]} 18... Bxd5 {[%clk 0:02:02]} 19. exd5 {[%clk 0:01:46.4]}
19... Qxd5 {[%clk 0:02:02.9]} 20. Rad1 {[%clk 0:01:41.2]} 20... Qa5 {[%clk
0:02:02.4]} 21. Qb2 {[%clk 0:01:37.9]} 21... Rab8 {[%clk 0:02:00.5]} 22. Rd7
{[%clk 0:01:33.7]} 22... Rfd8 {[%clk 0:01:57.6]} 23. Rxd8+ {[%clk 0:01:30.1]}
23... Rxd8 {[%clk 0:01:58.5]} 24. Qxb7 {[%clk 0:01:29]} 24... Ne7 {[%clk
0:01:49.1]} 25. Qxa6 {[%clk 0:01:26.5]} 25... Qc5 {[%clk 0:01:48.4]} 26. a4
{[%clk 0:01:17.8]} 26... Ng6 {[%clk 0:01:47.9]} 27. Qc4 {[%clk 0:01:15.3]} 27...
Qa5 {[%clk 0:01:40.4]} 28. Rd1 {[%clk 0:01:13.4]} 28... Re8 {[%clk 0:01:39.6]}
29. Bf1 {[%clk 0:01:12.2]} 29... Ra8 {[%clk 0:01:37.4]} 30. Rd7 {[%clk
0:01:11.4]} 30... Rf8 {[%clk 0:01:34.2]} 31. Rxc7 {[%clk 0:01:09.2]} 31... Qb6
{[%clk 0:01:28.1]} 32. Rc8 {[%clk 0:01:06.2]} 1-0

[Event "Early-Titled-Tuesday-Blitz-May-14-2024"]
[Site "Chess.com"]
[Date "2024.05.14"]
[Round "8"]
[White "DvaHrasta"]
[Black "Nikita_Klepikov"]
[Result "1-0"]
[WhiteElo "2521"]
[BlackElo "2301"]
[TimeControl "180+1"]
[EndTime "9:28:05 PDT"]
[Termination "DvaHrasta won by resignation"]

1. c4 {[%clk 0:03:00.9]} 1... e5 {[%clk 0:02:59.3]} 2. g3 {[%clk 0:03:00.5]}
2... g6 {[%clk 0:02:57.6]} 3. d4 {[%clk 0:02:59.5]} 3... d6 {[%clk 0:02:55.2]}
4. dxe5 {[%clk 0:02:58.4]} 4... dxe5 {[%clk 0:02:55.5]} 5. Qxd8+ {[%clk
0:02:58.2]} 5... Kxd8 {[%clk 0:02:56.4]} 6. Nc3 {[%clk 0:02:58.4]} 6... Be6
{[%clk 0:02:55.2]} 7. b3 {[%clk 0:02:56.2]} 7... Bb4 {[%clk 0:02:51.1]} 8. Bb2
{[%clk 0:02:56.1]} 8... Nd7 {[%clk 0:02:46.9]} 9. O-O-O {[%clk 0:02:55.3]} 9...
c6 {[%clk 0:02:43.1]} 10. f4 {[%clk 0:02:48.5]} 10... Ke7 {[%clk 0:02:09.4]} 11.
Nf3 {[%clk 0:02:43.7]} 11... exf4 {[%clk 0:01:52.3]} 12. gxf4 {[%clk 0:02:39.7]}
12... f6 {[%clk 0:01:41]} 13. Nd4 {[%clk 0:02:36.4]} 13... Bf7 {[%clk
0:01:32.8]} 14. Bh3 {[%clk 0:02:31.3]} 14... Rd8 {[%clk 0:01:32.1]} 15. e4
{[%clk 0:02:29]} 15... Nh6 {[%clk 0:01:24.5]} 16. e5 {[%clk 0:02:21.6]} 16...
Nc5 {[%clk 0:00:30.9]} 17. exf6+ {[%clk 0:02:16.5]} 17... Kf8 {[%clk 0:00:16.9]}
18. Rhe1 {[%clk 0:02:10.9]} 18... Nd7 {[%clk 0:00:12.2]} 19. Ne6+ {[%clk
0:02:03.9]} 19... Bxe6 {[%clk 0:00:11.9]} 20. Bxe6 {[%clk 0:02:04.1]} 1-0

[Event "Early-Titled-Tuesday-Blitz-May-14-2024"]
[Site "Chess.com"]
[Date "2024.05.14"]
[Round "8"]
[White "Payyappat"]
[Black "David_George21"]
[Result "0-1"]
[WhiteElo "2515"]
[BlackElo "2384"]
[TimeControl "180+1"]
[EndTime "9:28:09 PDT"]
[Termination "David_George21 won by resignation"]

1. e4 {[%clk 0:03:00.9]} 1... c5 {[%clk 0:02:58.2]} 2. Nf3 {[%clk 0:03:00.3]}
2... d6 {[%clk 0:02:58.6]} 3. d4 {[%clk 0:03:01.2]} 3... cxd4 {[%clk 0:02:59.1]}
4. Nxd4 {[%clk 0:03:02.1]} 4... Nf6 {[%clk 0:02:59.2]} 5. Nc3 {[%clk 0:03:03]}
5... Nc6 {[%clk 0:02:59.1]} 6. Bg5 {[%clk 0:03:01.4]} 6... e6 {[%clk 0:02:59.3]}
7. Qd2 {[%clk 0:03:00]} 7... a6 {[%clk 0:02:59.8]} 8. O-O-O {[%clk 0:02:57.5]}
8... h6 {[%clk 0:03:00.1]} 9. Bxf6 {[%clk 0:02:54.1]} 9... Qxf6 {[%clk
0:02:59.5]} 10. Nxc6 {[%clk 0:02:52.8]} 10... bxc6 {[%clk 0:03:00.4]} 11. f4
{[%clk 0:02:52.9]} 11... d5 {[%clk 0:02:56.1]} 12. exd5 {[%clk 0:02:46.5]} 12...
cxd5 {[%clk 0:02:55.1]} 13. Nxd5 {[%clk 0:02:40.1]} 13... exd5 {[%clk
0:02:53.8]} 14. Qxd5 {[%clk 0:02:41]} 14... Rb8 {[%clk 0:02:45.9]} 15. Bc4
{[%clk 0:02:29.4]} 15... Be7 {[%clk 0:02:22.6]} 16. Rhe1 {[%clk 0:02:03.5]}
16... Qxb2+ {[%clk 0:02:17.6]} 17. Kd2 {[%clk 0:02:03.1]} 17... O-O {[%clk
0:02:16.4]} 18. Rb1 {[%clk 0:01:51]} 18... Bb4+ {[%clk 0:02:08.2]} 19. Ke3
{[%clk 0:01:24.9]} 19... Re8+ {[%clk 0:01:14]} 20. Kf2 {[%clk 0:01:04.6]} 20...
Bxe1+ {[%clk 0:01:10.7]} 21. Rxe1 {[%clk 0:01:02.2]} 21... Qxc2+ {[%clk
0:01:05.4]} 22. Kg3 {[%clk 0:01:00.8]} 22... Be6 {[%clk 0:01:03.3]} 0-1